fUSD/lending_fUSD_20250530
["ID","MTS","AMOUNT","RATE_DAILY","PERIOD"]
[363190031,1748619094720,-558.24,0.00023287,2]
[363190032,1748619094730,-633.87,0.00023287,2]
[363190033,1748619094740,-420.0,0.00023287,2]
[363190034,1748619094749,-465.46,0.00023287,2]
[363190035,1748619094759,-1085.24,0.00023287,2]
[363190036,1748619094770,-420.0,0.00023287,2]
[363190037,1748619094780,-3634.58,0.00023287,2]
[363190038,1748619094790,-2016.38,0.00023287,2]
[363190039,1748619094805,-609.8,0.00023287,2]
[363190040,1748619094815,-180.808035,0.00023287,7]
[363190041,1748619094825,-420.0,0.00023287,2]
[363190042,1748619094836,-1168.36,0.00023287,2]
[363190043,1748619094847,-5361.86,0.00023287,2]
[363190044,1748619094857,-420.0,0.00023287,2]
[363190045,1748619094867,-2127.16,0.00023287,2]
[363190046,1748619094880,-180.808035,0.00023287,7]
[363190047,1748619094890,-1484.06,0.00023287,2]
[363190048,1748619094900,-420.0,0.00023287,2]
[363190049,1748619094909,-1109.67,0.00023287,2]
[363190050,1748619094919,-904.81,0.00023287,2]
[363190051,1748619094929,-614.8,0.00023287,2]
[363190052,1748619094939,-575.02,0.00023287,2]
[363190053,1748619094950,-562.44,0.00023287,2]
[363190054,1748619094960,-674.8,0.00023287,2]
[363190055,1748619094969,-2741.562088,0.00023287,7]
[363190056,1748619094980,-1824.08,0.00023287,2]
[363190057,1748619094990,-420.0,0.00023287,2]
[363190058,1748619095000,-2741.562088,0.00023287,7]
[363190059,1748619095009,-420.0,0.00023287,2]
[363190060,1748619095020,-203.470179,0.00023287,7]
[363190061,1748619095029,-490.58,0.00023287,2]
[363190062,1748619095039,-7075.98,0.00023287,2]
[363190063,1748619095048,-420.0,0.00023287,2]
[363190064,1748619095057,-1096.87,0.00023287,2]
[363190065,1748619095067,-723.21,0.00023287,2]
[363190066,1748619095076,-420.0,0.00023287,2]
[363190067,1748619095085,-1561.66,0.00023287,2]
[363190068,1748619095095,-420.0,0.00023287,2]
[363190069,1748619095105,-9812.16,0.00023287,2]
[363190070,1748619095116,-1075.43,0.00023287,2]
[363190071,1748619095126,-1429.73,0.00023287,2]
[363190072,1748619095137,-622.82,0.00023287,2]
[363190073,1748619095147,-11863.32,0.00023287,2]
[363190074,1748619095156,-915.42,0.00023287,2]
[363190075,1748619095166,-1946.94,0.00023287,2]
[363190076,1748619095176,-420.0,0.00023287,2]
[363190077,1748619095186,-594.91,0.00023287,2]
[363190078,1748619095196,-797.36,0.00023287,2]
[363190079,1748619095206,-1167.97,0.00023287,2]
[363190080,1748619095216,-5682.0,0.00023287,2]
[363190081,1748619095225,-524.77,0.00023287,2]
[363190082,1748619095234,-1550.77,0.00023287,2]
[363190083,1748619095245,-420.0,0.00023287,2]
[363190084,1748619095254,-974.63,0.00023287,2]
[363190085,1748619095264,-655.87,0.00023287,2]
[363190086,1748619095277,-600.66,0.00023287,2]
[363190087,1748619095287,-702.81,0.00023287,2]
[363190088,1748619095297,-1024.75,0.00023287,2]
[363190089,1748619095307,-609.69,0.00023287,2]
[363190090,1748619095317,-1076.37,0.00023287,2]
[363190091,1748619095326,-610.074716,0.00023287,7]
[363190092,1748619095336,-420.0,0.00023287,2]
[363190093,1748619095346,-610.074716,0.00023287,7]
[363190094,1748619095355,-464.14,0.00023287,2]
[363190095,1748619095365,-610.074716,0.00023287,7]
[363190096,1748619095375,-420.0,0.00023287,2]
[363190097,1748619095384,-610.074716,0.00023287,7]
[363190098,1748619095393,-1708.68,0.00023287,2]
[363190099,1748619095403,-476.72,0.00023287,2]
[363190100,1748619095413,-726.29,0.00023287,2]
[363190101,1748619095423,-1013.34,0.00023287,2]
[363190102,1748619095432,-9498.11,0.00023287,2]
[363190103,1748619095442,-850.36,0.00023287,2]
[363190104,1748619095452,-1568.21,0.00023287,2]
[363190105,1748619095462,-997.73,0.00023287,2]
[363190106,1748619095472,-829.87,0.00023287,2]
[363190107,1748619095482,-717.62,0.00023287,2]
[363190108,1748619095492,-862.79,0.00023287,2]
[363190109,1748619095502,-2137.81,0.00023287,2]
[363190110,1748619095512,-657.91,0.00023287,2]
[363190111,1748619095524,-354.71380424,0.00023287,2]
[363190112,1748619095533,-985.32,0.00023287,2]
[363190113,1748619095543,-420.0,0.00023287,2]
[363190114,1748619095553,-420.0,0.00023287,2]
[363190115,1748619095563,-541.52,0.00023287,2]
[363190116,1748619095573,-1399.41,0.00023287,2]
[363190117,1748619095583,-420.0,0.00023287,2]
[363190118,1748619095594,-1150.73,0.00023287,2]
[363190119,1748619095604,-420.0,0.00023287,2]
[363190120,1748619095613,-2296.95,0.00023287,2]
[363190121,1748619095623,-420.0,0.00023287,2]
[363190122,1748619095633,-795.59,0.00023287,2]
[363190123,1748619095642,-682.72,0.00023287,2]
[363190124,1748619095652,-575.16,0.00023287,2]
[363190125,1748619095661,-3116.89,0.00023287,2]
[363190126,1748619095671,-1061.77,0.00023287,2]
[363190127,1748619095682,-1233.85,0.00023287,2]
[363190128,1748619095691,-420.0,0.00023287,2]
[363190129,1748619095702,-11481.25,0.00023287,2]
[363190130,1748619095711,-426.85,0.00023287,2]
[363190131,1748619095721,-1096.82,0.00023287,2]
[363190132,1748619095731,-515.15300302,0.00023287,2]
[363190133,1748619095742,-857.17,0.00023287,2]
[363190134,1748619095751,-1626.19,0.00023287,2]
[363190135,1748619095761,-420.0,0.00023287,2]
[363190136,1748619095774,-634.02,0.00023287,2]
[363190137,1748619095785,-1283.49,0.00023287,2]
[363190138,1748619095795,-1507.45,0.00023287,2]
[363190139,1748619095808,-532.67,0.00023287,2]
[363190140,1748619095818,-441.96,0.00023287,2]
[363190141,1748619095829,-3197.32,0.00023287,2]
[363190142,1748619095839,-1018.57,0.00023287,2]
[363190143,1748619095849,-1122.87,0.00023287,2]
[363190144,1748619095859,-2066.87,0.00023287,2]
[363190145,1748619095869,-489.48,0.00023287,2]
[363190146,1748619095879,-461.31,0.00023287,2]
[363190147,1748619095889,-429.62,0.00023287,2]
[363190148,1748619095898,-3670.01,0.00023287,2]
[363190149,1748619095909,-420.0,0.00023287,2]
[363190150,1748619095918,-805.58,0.00023287,2]
[363190151,1748619095927,-1386.9,0.00023287,2]
[363190152,1748619095937,-894.1,0.00023287,2]
[363190153,1748619095946,-2960.24,0.00023287,2]
[363190154,1748619095956,-1963.11,0.00023287,2]
[363190155,1748619095966,-906.34,0.00023287,2]
[363190156,1748619095977,-7808.56,0.00023287,2]
[363190157,1748619095986,-1068.95,0.00023287,2]
[363190158,1748619095996,-975.57,0.00023287,2]
[363190159,1748619096005,-1446.02,0.00023287,2]
[363190160,1748619096015,-1309.89,0.00023287,2]
[363190161,1748619096027,-5878.54,0.00023287,2]
[363190162,1748619096037,-159.595298,0.00023287,7]
[363190163,1748619096047,-159.595298,0.00023287,7]
[363190164,1748619096057,-591.35,0.00023287,2]
[363190165,1748619096067,-4452.28,0.00023287,2]
[363190166,1748619096076,-8491.51,0.00023287,2]
[363190167,1748619096086,-982.46,0.00023287,2]
[363190168,1748619096095,-1017.748332,0.00023287,7]
[363190169,1748619096104,-1017.748332,0.00023287,7]
[363190170,1748619096113,-958.4,0.00023287,2]
[363190171,1748619096123,-159.595298,0.00023287,7]
[363190172,1748619096132,-159.595289,0.00023287,7]
[363190173,1748619096142,-139506.04,0.00023287,2]
[363190174,1748619096151,-1343.03,0.00023287,2]
[363190175,1748619096160,-1033.36,0.00023287,2]
[363190176,1748619096170,-657.44,0.00023287,2]
[363190177,1748619096179,-420.0,0.00023287,2]
[363190178,1748619096189,-1017.748332,0.00023287,7]
[363190179,1748619096198,-1017.748338,0.00023287,7]
[363190180,1748619096207,-453.46,0.00023287,2]
[363190181,1748619096217,-1032.71,0.00023287,2]
[363190182,1748619096226,-1623.73,0.00023287,2]
[363190183,1748619096235,-458.54,0.00023287,2]
[363190184,1748619096244,-3547.4,0.00023287,2]
[363190185,1748619096253,-982.85,0.00023287,2]
[363190186,1748619096262,-1005.97,0.00023287,2]
[363190187,1748619096273,-1623.36,0.00023287,2]
[363190188,1748619096282,-3804.58,0.00023287,2]
[363190189,1748619096291,-37354.79,0.00023287,2]
[363190190,1748619096301,-1684.99,0.00023287,2]
[363190191,1748619096311,-500.0,0.00023287,2]
[363190192,1748619096320,-1215.02,0.00023287,2]
[363190193,1748619096330,-753.84,0.00023287,2]
[363190194,1748619096340,-937.17,0.00023287,2]
[363190195,1748619096350,-420.0,0.00023287,2]
[363190196,1748619096360,-10069.56,0.00023287,2]
[363190197,1748619096370,-2424.56,0.00023287,2]
[363190198,1748619096379,-519.37,0.00023287,2]
[363190199,1748619096388,-7476.47,0.00023287,2]
[363190200,1748619096398,-868.93,0.00023287,2]
[363190201,1748619096408,-628.41,0.00023287,2]
[363190202,1748619096417,-422.51,0.00023287,2]
[363190203,1748619096427,-420.0,0.00023287,2]
[363190204,1748619096437,-1449.88,0.00023287,2]
[363190205,1748619096446,-14516.45,0.00023287,2]
[363190206,1748619096456,-4266.56,0.00023287,2]
[363190207,1748619096466,-830.49,0.00023287,2]
[363190208,1748619096475,-1548.49,0.00023287,2]
[363190209,1748619096485,-1978.38,0.00023287,2]
[363190210,1748619096494,-1884.76,0.00023287,2]
[363190211,1748619096504,-542.86,0.00023287,2]
[363190212,1748619096513,-593.44,0.00023287,2]
[363190213,1748619096526,-510.86,0.00023287,2]
[363190214,1748619096535,-420.0,0.00023287,2]
[363190215,1748619096545,-1709.24,0.00023287,2]
[363190216,1748619096554,-2758.03,0.00023287,2]
[363190217,1748619096563,-420.0,0.00023287,2]
[363190218,1748619096574,-29722.14,0.00023287,2]
[363190219,1748619096583,-881.72,0.00023287,2]
[363190220,1748619096594,-1169.42,0.00023287,2]
[363190221,1748619096603,-1406.27,0.00023287,2]
[363190222,1748619096613,-826.36,0.00023287,2]
[363190223,1748619096623,-1544.23,0.00023287,2]
[363190224,1748619096632,-1175.33,0.00023287,2]
[363190225,1748619096642,-3295.64,0.00023287,2]
[363190226,1748619096652,-1761.11,0.00023287,2]
[363190227,1748619096661,-660.71,0.00023287,2]
[363190228,1748619096671,-3573.53,0.00023287,2]
[363190229,1748619096681,-1034.84,0.00023287,2]
[363190230,1748619096691,-738.85,0.00023287,2]
[363190231,1748619096700,-1151.03,0.00023287,2]
[363190232,1748619096710,-9251.83,0.00023287,2]
[363190233,1748619096719,-420.0,0.00023287,2]
[363190234,1748619096729,-772.03,0.00023287,2]
[363190235,1748619096739,-490.63,0.00023287,2]
[363190236,1748619096749,-720.83,0.00023287,2]
[363190237,1748619096759,-1360.32,0.00023287,2]
[363190238,1748619096769,-2486.32,0.00023287,2]
[363190239,1748619096779,-723.88,0.00023287,2]
[363190240,1748619096788,-567.24,0.00023287,2]
[363190241,1748619096800,-4470.51,0.00023287,2]
[363190242,1748619096810,-1446.13,0.00023287,2]
[363190243,1748619096820,-2304.2,0.00023287,2]
[363190244,1748619096830,-1389.12,0.00023287,2]
[363190245,1748619096841,-420.0,0.00023287,2]
[363190246,1748619096851,-1054.71,0.00023287,2]
[363190247,1748619096861,-990.01,0.00023287,2]
[363190248,1748619096872,-1680.37,0.00023287,2]
[363190249,1748619096882,-521.76,0.00023287,2]
[363190250,1748619096893,-4095.54,0.00023287,2]
[363190251,1748619096903,-1486.66,0.00023287,2]
[363190252,1748619096913,-1336.51,0.00023287,2]
[363190253,1748619097097,-1487.37,0.00023287,2]
[363190254,1748619097107,-2771.35,0.00023287,2]
[363190255,1748619097116,-4189.49,0.00023287,2]
[363190256,1748619097125,-629.45,0.00023287,2]
[363190257,1748619097134,-2997.14,0.00023287,2]
[363190258,1748619097144,-1125.7,0.00023287,2]
[363190259,1748619097153,-1026.77,0.00023287,2]
[363190260,1748619097162,-614.16,0.00023287,2]
[363190261,1748619097172,-7561.37,0.00023287,2]
[363190262,1748619097183,-420.0,0.00023287,2]
[363190263,1748619097193,-1258.89,0.00023287,2]
[363190264,1748619097204,-1075.29,0.00023287,2]
[363190265,1748619097214,-760.57,0.00023287,2]
[363190266,1748619097223,-3180.63,0.00023287,2]
[363190267,1748619097233,-1927.78,0.00023287,2]
[363190268,1748619097242,-1656.75,0.00023287,2]
[363190269,1748619097252,-420.0,0.00023287,2]
[363190270,1748619097261,-641.68,0.00023287,2]
[363190271,1748619097272,-1318.91,0.00023287,2]
[363190272,1748619097281,-1139.98,0.00023287,2]
[363190273,1748619097291,-798.56,0.00023287,2]
[363190274,1748619097300,-1082.24,0.00023287,2]
[363190275,1748619097310,-718.05,0.00023287,2]
[363190276,1748619097319,-1239.27,0.00023287,2]
[363190277,1748619097328,-1074.24,0.00023287,2]
[363190278,1748619097338,-3419.97,0.00023287,2]
[363190279,1748619097347,-671.13,0.00023287,2]
[363190280,1748619097357,-1848.95,0.00023287,2]
[363190281,1748619097366,-2486.27,0.00023287,2]
[363190282,1748619097376,-420.0,0.00023287,2]
[363190283,1748619097385,-420.0,0.00023287,2]
[363190284,1748619097394,-420.0,0.00023287,2]
[363190285,1748619097404,-1822.33,0.00023287,2]
[363190286,1748619097413,-4083.38,0.00023287,2]
[363190287,1748619097422,-1501.86,0.00023287,2]
[363190288,1748619097432,-1358.16,0.00023287,2]
[363190289,1748619097441,-4868.11,0.00023287,2]
[363190290,1748619097451,-4025.56,0.00023287,2]
[363190291,1748619097461,-2713.7,0.00023287,2]
[363190292,1748619097471,-420.0,0.00023287,2]
[363190293,1748619097480,-489.31,0.00023287,2]
[363190294,1748619097490,-742.91,0.00023287,2]
[363190295,1748619097500,-703.73,0.00023287,2]
[363190296,1748619097509,-802.33,0.00023287,2]
[363190297,1748619097519,-937.93,0.00023287,2]
[363190298,1748619097529,-2531.82,0.00023287,2]
[363190299,1748619097540,-420.0,0.00023287,2]
[363190300,1748619097550,-420.0,0.00023287,2]
[363190301,1748619097561,-830.27,0.00023287,2]
[363190302,1748619097571,-420.0,0.00023287,2]
[363190303,1748619097580,-622.77,0.00023287,2]
[363190304,1748619097590,-7051.39,0.00023287,2]
[363190305,1748619097600,-961.82,0.00023287,2]
[363190306,1748619097609,-1538.8,0.00023287,2]
[363190307,1748619097620,-19030.44,0.00023287,2]
[363190308,1748619097630,-1325.56,0.00023287,2]
[363190309,1748619097639,-420.0,0.00023287,2]
[363190310,1748619097648,-2716.47,0.00023287,2]
[363190311,1748619097658,-1264.47,0.00023287,2]
[363190312,1748619097668,-420.0,0.00023287,2]
[363190313,1748619097678,-702.43,0.00023287,2]
[363190314,1748619097687,-735.86,0.00023287,2]
[363190315,1748619097696,-760.22,0.00023287,2]
[363190316,1748619097706,-2783.11,0.00023287,2]
[363190317,1748619097715,-676.42,0.00023287,2]
[363190318,1748619097725,-479.23208887,0.00023287,2]
[363190319,1748619097734,-734.54,0.00023287,2]
[363190320,1748619097744,-1663.09,0.00023287,2]
[363190321,1748619097755,-450.49,0.00023287,2]
[363190322,1748619097764,-6908.64,0.00023287,2]
[363190323,1748619097776,-1803.22,0.00023287,2]
[363190324,1748619097786,-420.0,0.00023287,2]
[363190325,1748619097798,-807.7,0.00023287,2]
[363190326,1748619097810,-3069.28,0.00023287,2]
[363190327,1748619097819,-466.47,0.00023287,2]
[363190328,1748619097829,-420.0,0.00023287,2]
[363190329,1748619097839,-420.0,0.00023287,2]
[363190330,1748619097849,-2553.4,0.00023287,2]
[363190331,1748619097858,-1271.23,0.00023287,2]
[363190332,1748619097868,-1013.92,0.00023287,2]
[363190333,1748619097879,-2875.31,0.00023287,2]
[363190334,1748619097888,-1187.2,0.000233,2]
[363190335,1748619097898,-3757.92,0.000233,2]
[363190336,1748619097909,-271.98,0.000233,2]
[363190337,1748619097919,-5154.36,0.000233,2]
[363190338,1748619097928,-2334.86,0.000233,2]
[363190339,1748619097938,-364.64,0.000233,2]
[363190340,1748619097947,-328.33,0.000233,2]
[363190341,1748619097957,-1848.64,0.000233,2]
[363190342,1748619097967,-6212.52,0.000233,2]
[363190343,1748619097976,-6088.2,0.000233,2]
[363190344,1748619097986,-261038.46,0.000233,7]
[363190345,1748619097996,-9509.33,0.000233,7]
[363190346,1748619098005,-150.0,0.00023325,2]
[363190347,1748619098015,-980.858598,0.00023325,2]
[363190348,1748619098029,-1078.45113,0.00023325,2]
[363190349,1748619098038,-1000.0,0.00023347,2]
[363190350,1748619098048,-587.0,0.00023371,2]
[363190351,1748619098058,-35000.0,0.000234,2]
[363190352,1748619098068,-4049.5936825,0.00023417,9]
[363190353,1748619098078,-150.0,0.00023425,2]
[363190354,1748619098087,-980.858598,0.00023425,2]
[363190355,1748619098097,-1078.45113,0.00023425,2]
[363190356,1748619098107,-305.61,0.00023465,2]
[363190357,1748619098116,-151.0,0.00023519,2]
[363190358,1748619098126,-223.0315306,0.00023519,2]
[363190359,1748619098136,-150.0,0.00023525,2]
[363190360,1748619098145,-980.858598,0.00023525,2]
[363190361,1748619098154,-1078.45113,0.00023525,2]
[363190362,1748619098163,-300.0,0.0002356,2]
[363190363,1748619098172,-300.0,0.0002356,2]
[363190364,1748619098181,-300.0,0.0002356,2]
[363190365,1748619098192,-300.0,0.0002356,2]
[363190366,1748619098202,-175.51,0.0002356,2]
[363190367,1748619098212,-151.0,0.00023561,7]
[363190368,1748619098221,-249.439737,0.00023561,7]
[363190369,1748619098231,-151.0,0.00023561,7]
[363190370,1748619098240,-151.0,0.00023561,7]
[363190371,1748619098250,-151.0,0.00023561,7]
[363190372,1748619098259,-151.0,0.00023561,7]
[363190373,1748619098270,-225.404453,0.00023561,7]
[363190374,1748619098280,-420.0,0.00023561,2]
[363190375,1748619098290,-420.0,0.00023561,2]
[363190376,1748619098299,-579.42,0.00023561,2]
[363190377,1748619098309,-441.8,0.00023561,2]
[363190378,1748619098319,-591.36,0.00023561,2]
[363190379,1748619098328,-451.1,0.00023561,2]
[363190380,1748619098338,-468.16,0.00023561,2]
[363190381,1748619098347,-420.0,0.00023561,2]
[363190382,1748619098357,-420.0,0.00023561,2]
[363190383,1748619098367,-420.3,0.00023561,2]
[363190384,1748619098376,-420.0,0.00023561,2]
[363190385,1748619098386,-853.41,0.00023561,2]
[363190386,1748619098395,-420.0,0.00023561,2]
[363190387,1748619098406,-420.0,0.00023561,2]
[363190388,1748619098415,-525.07,0.00023561,2]
[363190389,1748619098425,-420.0,0.00023561,2]
[363190390,1748619098435,-502.76,0.00023561,2]
[363190391,1748619098445,-1167.56,0.00023561,2]
[363190392,1748619098455,-769.78,0.00023561,2]
[363190393,1748619098465,-499.23,0.00023561,2]
[363190394,1748619098474,-346.82426588,0.00023561,2]
[363190395,1748619098483,-151.0,0.00023561,7]
[363190396,1748619098492,-151.0,0.00023561,7]
[363190397,1748619098501,-420.0,0.00023561,2]
[363190398,1748619098511,-531.83,0.00023561,2]
[363190399,1748619098522,-420.0,0.00023561,2]
[363190400,1748619098532,-518.35,0.00023561,2]
[363190401,1748619098542,-479.53,0.00023561,2]
[363190402,1748619098551,-430.77945833,0.00023561,2]
[363190403,1748619098560,-753.24,0.00023561,2]
[363190404,1748619098570,-265.73,0.00023561,2]
[363190405,1748619098579,-424.17440328,0.00023561,2]
[363190406,1748619098589,-333.29571246,0.00023561,2]
[363190407,1748619098598,-476.72,0.00023561,2]
[363190408,1748619098607,-420.0,0.00023561,2]
[363190409,1748619098616,-571.1,0.00023561,2]
[363190410,1748619098626,-420.0,0.00023561,2]
[363190411,1748619098635,-908.97,0.00023561,2]
[363190412,1748619098646,-420.0,0.00023561,2]
[363190413,1748619098656,-420.0,0.00023561,2]
[363190414,1748619098666,-420.0,0.00023561,2]
[363190415,1748619098676,-420.0,0.00023561,2]
[363190416,1748619098686,-432.46,0.00023561,2]
[363190417,1748619098695,-420.0,0.00023561,2]
[363190418,1748619098705,-420.0,0.00023561,2]
[363190419,1748619098715,-420.0,0.00023561,2]
[363190420,1748619098725,-420.0,0.00023561,2]
[363190421,1748619098734,-420.0,0.00023561,2]
[363190422,1748619098744,-2098.6,0.00023561,2]
[363190423,1748619098753,-490.07,0.00023561,2]
[363190424,1748619098763,-420.0,0.00023561,2]
[363190425,1748619098774,-420.0,0.00023561,2]
[363190426,1748619098784,-770.69,0.00023561,2]
[363190427,1748619098797,-420.0,0.00023561,2]
[363190428,1748619098806,-890.15,0.00023561,2]
[363190429,1748619098816,-420.0,0.00023561,2]
[363190430,1748619098825,-420.86,0.00023561,2]
[363190431,1748619098835,-426.87,0.00023561,2]
[363190432,1748619098845,-420.0,0.00023561,2]
[363190433,1748619098855,-420.0,0.00023561,2]
[363190434,1748619098864,-424.91,0.00023561,2]
[363190435,1748619098875,-429.06,0.00023561,2]
[363190436,1748619098886,-420.0,0.00023561,2]
[363190437,1748619098895,-420.0,0.00023561,2]
[363190438,1748619098905,-420.0,0.00023561,2]
[363190439,1748619098914,-758.53,0.00023561,2]
[363190440,1748619098924,-420.0,0.00023561,2]
[363190441,1748619098934,-420.0,0.00023561,2]
[363190442,1748619098944,-423.97648057,0.00023561,2]
[363190443,1748619098953,-772.94,0.00023561,2]
[363190444,1748619098963,-420.0,0.00023561,2]
[363190445,1748619098973,-420.0,0.00023561,2]
[363190446,1748619098982,-420.0,0.00023561,2]
[363190447,1748619098992,-427.85,0.00023561,2]
[363190448,1748619099002,-420.0,0.00023561,2]
[363190449,1748619099012,-420.0,0.00023561,2]
[363190450,1748619099025,-456.87,0.00023561,2]
[363190451,1748619099034,-420.0,0.00023561,2]
[363190452,1748619099043,-385.6591831,0.00023561,2]
[363190453,1748619099052,-420.0,0.00023561,2]
[363190454,1748619099062,-420.0,0.00023561,2]
[363190455,1748619099072,-420.0,0.00023561,2]
[363190456,1748619099081,-420.0,0.00023561,2]
[363190457,1748619099091,-420.0,0.00023561,2]
[363190458,1748619099101,-420.0,0.00023561,2]
[363190459,1748619099111,-420.0,0.00023561,2]
[363190460,1748619099120,-420.0,0.00023561,2]
[363190461,1748619099129,-420.0,0.00023561,2]
[363190462,1748619099139,-151.0,0.00023561,7]
[363190463,1748619099149,-420.0,0.00023561,2]
[363190464,1748619099159,-777.89,0.00023561,2]
[363190465,1748619099168,-1819.65,0.00023561,2]
[363190466,1748619099178,-863.65,0.00023561,2]
[363190467,1748619099187,-420.0,0.00023561,2]
[363190468,1748619099197,-1212.65,0.00023561,2]
[363190469,1748619099207,-1175.81,0.00023561,2]
[363190470,1748619099216,-553.05,0.00023561,2]
[363190471,1748619099226,-796.08,0.00023561,2]
[363190472,1748619099235,-428.63574318,0.00023561,2]
[363190473,1748619099245,-420.0,0.00023561,2]
[363190474,1748619099254,-523.03,0.00023561,2]
[363190475,1748619099264,-501.69,0.00023561,2]
[363190476,1748619099274,-1811.35,0.00023561,2]
[363190477,1748619099283,-420.0,0.00023561,2]
[363190478,1748619099293,-420.0,0.00023561,2]
[363190479,1748619099303,-420.0,0.00023561,2]
[363190480,1748619099312,-822.17,0.00023561,2]
[363190481,1748619099322,-496.62,0.00023561,2]
[363190482,1748619099331,-641.0,0.00023561,2]
[363190483,1748619099341,-847.29,0.00023561,2]
[363190484,1748619099350,-420.0,0.00023561,2]
[363190485,1748619099360,-1102.55,0.00023561,2]
[363190486,1748619099369,-443.43,0.00023561,2]
[363190487,1748619099379,-420.0,0.00023561,2]
[363190488,1748619099388,-443.13,0.00023561,2]
[363190489,1748619099398,-751.91,0.00023561,2]
[363190490,1748619099407,-420.0,0.00023561,2]
[363190491,1748619099417,-420.0,0.00023561,2]
[363190492,1748619099427,-420.0,0.00023561,2]
[363190493,1748619099436,-518.42,0.00023561,2]
[363190494,1748619099446,-177.888536,0.00023561,7]
[363190495,1748619099456,-1199.0,0.00023561,2]
[363190496,1748619099465,-841.83,0.00023561,2]
[363190497,1748619099475,-1711.43,0.00023561,2]
[363190498,1748619099484,-508.53,0.00023561,2]
[363190499,1748619099494,-948.67,0.00023561,2]
[363190500,1748619099503,-420.0,0.00023561,2]
[363190501,1748619099679,-610.77,0.00023561,2]
[363190502,1748619099689,-420.0,0.00023561,2]
[363190503,1748619099699,-423.52,0.00023561,2]
[363190504,1748619099709,-2171.03,0.00023561,2]
[363190505,1748619099718,-415.70598494,0.00023561,2]
[363190506,1748619099728,-420.0,0.00023561,2]
[363190507,1748619099737,-945.97,0.00023561,2]
[363190508,1748619099747,-572.48,0.00023561,2]
[363190509,1748619099757,-1319.71,0.00023561,2]
[363190510,1748619099766,-456.76,0.00023561,2]
[363190511,1748619099778,-1456.24,0.00023561,2]
[363190512,1748619099788,-636.09,0.00023561,2]
[363190513,1748619099798,-743.92,0.00023561,2]
[363190514,1748619099810,-853.5,0.00023561,2]
[363190515,1748619099819,-1258.56,0.00023561,2]
[363190516,1748619099830,-420.0,0.00023561,2]
[363190517,1748619099840,-652.14,0.00023561,2]
[363190518,1748619099849,-569.93,0.00023561,2]
[363190519,1748619099859,-1419.49,0.00023561,2]
[363190520,1748619099869,-584.74,0.00023561,2]
[363190521,1748619099879,-755.51,0.00023561,2]
[363190522,1748619099889,-582.04,0.00023561,2]
[363190523,1748619099898,-420.0,0.00023561,2]
[363190524,1748619099908,-420.0,0.00023561,2]
[363190525,1748619099919,-420.0,0.00023561,2]
[363190526,1748619099931,-781.6,0.00023561,2]
[363190527,1748619099941,-1041.01,0.00023561,2]
[363190528,1748619099951,-1369.52,0.00023561,2]
[363190529,1748619099961,-474.65,0.00023561,2]
[363190530,1748619099973,-463.6,0.00023561,2]